[Event "Titled Tuesday Blitz November 14 Early 2023"]
[White "Estrada Nieto, Julian"]
[Black "Pastar, Slaven"]
[WhiteFideId "5101018"]
[BlackFideId "14402718"]
[WhiteElo "2451"]
[BlackElo "2638"]
[Result "0-1"]
[Round "3"]
[TimeControl "180+1"]
[Date "2023.11.14"]
[WhiteClock "0:00:13"]
[BlackClock "0:00:53"]
[Board "119"]

1. e4 {[%clk 0:03:00]}  b6 {[%clk 0:02:58]} 2. d4 {[%clk 0:02:59]}  Bb7 {[%clk 0:02:59]} 3. Nc3 {[%clk 0:03:00]}  e6 {[%clk 0:02:57]} 4. Nf3 {[%clk 0:03:00]}  Bb4 {[%clk 0:02:56]} 5. Bd3 {[%clk 0:03:00]}  Nf6 {[%clk 0:02:55]} 6. Qe2 {[%clk 0:03:01]}  d5 {[%clk 0:02:56]} 7. exd5 {[%clk 0:03:01]}  Qxd5 {[%clk 0:02:55]} 8. Bd2 {[%clk 0:03:01]}  Bxc3 {[%clk 0:02:52]} 9. bxc3 {[%clk 0:03:01]}  Qh5 {[%clk 0:02:52]} 10. O-O {[%clk 0:02:52]}  O-O {[%clk 0:02:50]} 11. Bf4 {[%clk 0:02:49]}  c5 {[%clk 0:02:46]} 12. Ne5 {[%clk 0:02:44]}  Qxe2 {[%clk 0:02:44]} 13. Bxe2 {[%clk 0:02:44]}  Nbd7 {[%clk 0:02:40]} 14. Nxd7 {[%clk 0:02:36]}  Nxd7 {[%clk 0:02:41]} 15. a4 {[%clk 0:02:36]}  Rac8 {[%clk 0:02:37]} 16. Bb5 {[%clk 0:02:25]}  Nf6 {[%clk 0:02:36]} 17. dxc5 {[%clk 0:01:58]}  bxc5 {[%clk 0:02:30]} 18. Rfd1 {[%clk 0:01:38]}  Nd5 {[%clk 0:02:24]} 19. Bd2 {[%clk 0:01:37]}  c4 {[%clk 0:02:24]} 20. a5 {[%clk 0:01:34]}  Rc5 {[%clk 0:02:22]} 21. Rdb1 {[%clk 0:01:23]}  Bc8 {[%clk 0:02:00]} 22. Ra4 {[%clk 0:01:14]}  a6 {[%clk 0:01:55]} 23. Bxc4 {[%clk 0:01:10]}  Bd7 {[%clk 0:01:53]} 24. Bxd5 {[%clk 0:01:06]}  Bxa4 {[%clk 0:01:52]} 25. Be4 {[%clk 0:01:00]}  Bb5 {[%clk 0:01:29]} 26. Ra1 {[%clk 0:00:55]}  Rd8 {[%clk 0:01:29]} 27. Be1 {[%clk 0:00:47]}  f5 {[%clk 0:01:28]} 28. Bf3 {[%clk 0:00:44]}  g5 {[%clk 0:01:29]} 29. h3 {[%clk 0:00:43]}  Kg7 {[%clk 0:01:25]} 30. g3 {[%clk 0:00:41]}  Kg6 {[%clk 0:01:25]} 31. Kg2 {[%clk 0:00:40]}  h5 {[%clk 0:01:26]} 32. g4 {[%clk 0:00:38]}  hxg4 {[%clk 0:01:20]} 33. hxg4 {[%clk 0:00:38]}  Bc6 {[%clk 0:01:18]} 34. Bxc6 {[%clk 0:00:37]}  Rxc6 {[%clk 0:01:19]} 35. f3 {[%clk 0:00:33]}  Rd5 {[%clk 0:01:18]} 36. Kf1 {[%clk 0:00:32]}  Rcc5 {[%clk 0:01:18]} 37. Bf2 {[%clk 0:00:27]}  Rxa5 {[%clk 0:01:15]} 38. Re1 {[%clk 0:00:25]}  Kf7 {[%clk 0:01:11]} 39. Bd4 {[%clk 0:00:24]}  e5 {[%clk 0:01:06]} 40. Bb6 {[%clk 0:00:23]}  Ra2 {[%clk 0:00:56]} 41. gxf5 {[%clk 0:00:23]}  Rxc2 {[%clk 0:00:54]} 42. Bc7 {[%clk 0:00:21]}  Kf6 {[%clk 0:00:54]} 43. Re3 {[%clk 0:00:17]}  Rd1+ {[%clk 0:00:53]} 44. Re1 {[%clk 0:00:16]}  Rxe1+ {[%clk 0:00:53]} 45. Kxe1 {[%clk 0:00:16]}  Rxc3 {[%clk 0:00:54]} 46. Bd8+ {[%clk 0:00:16]}  Kxf5 {[%clk 0:00:54]} 47. Ba5 {[%clk 0:00:13]}  Rxf3 {[%clk 0:00:53]} 0-1


[Site "https://www.chess.com"]

[Event "Titled Tuesday Blitz November 14 Early 2023"]
[White "Hristodoulou, Panagiotis"]
[Black "Remolar Gallen, Jose"]
[WhiteFideId "4214340"]
[BlackFideId "2215187"]
[WhiteElo "2630"]
[BlackElo "2444"]
[Result "1-0"]
[Round "3"]
[TimeControl "180+1"]
[Date "2023.11.14"]
[WhiteClock "0:00:09"]
[BlackClock "0:00:01"]
[Board "124"]

1. e4 {[%clk 0:02:59]}  g6 {[%clk 0:02:58]} 2. d4 {[%clk 0:02:59]}  Bg7 {[%clk 0:02:59]} 3. Nc3 {[%clk 0:03:00]}  c6 {[%clk 0:02:59]} 4. Bc4 {[%clk 0:02:59]}  d5 {[%clk 0:02:58]} 5. exd5 {[%clk 0:03:00]}  b5 {[%clk 0:02:58]} 6. Bb3 {[%clk 0:03:01]}  b4 {[%clk 0:02:58]} 7. Na4 {[%clk 0:03:01]}  cxd5 {[%clk 0:02:58]} 8. a3 {[%clk 0:02:57]}  bxa3 {[%clk 0:02:58]} 9. Rxa3 {[%clk 0:02:58]}  Nf6 {[%clk 0:02:57]} 10. Nf3 {[%clk 0:02:58]}  O-O {[%clk 0:02:56]} 11. O-O {[%clk 0:02:58]}  Nc6 {[%clk 0:02:49]} 12. h3 {[%clk 0:02:54]}  Ne4 {[%clk 0:02:46]} 13. c3 {[%clk 0:02:53]}  Na5 {[%clk 0:02:32]} 14. Bc2 {[%clk 0:02:51]}  Nc4 {[%clk 0:02:31]} 15. Ra1 {[%clk 0:02:50]}  Bf5 {[%clk 0:02:17]} 16. Re1 {[%clk 0:02:40]}  Qd7 {[%clk 0:02:11]} 17. Qe2 {[%clk 0:02:23]}  Ncd6 {[%clk 0:01:38]} 18. Bf4 {[%clk 0:02:16]}  Rfe8 {[%clk 0:01:35]} 19. Ne5 {[%clk 0:02:02]}  Qb7 {[%clk 0:01:32]} 20. Nd3 {[%clk 0:01:57]}  Rac8 {[%clk 0:01:25]} 21. Nac5 {[%clk 0:01:50]}  Qb8 {[%clk 0:01:18]} 22. Nxe4 {[%clk 0:01:43]}  Bxe4 {[%clk 0:01:16]} 23. Ra2 {[%clk 0:01:31]}  Rc7 {[%clk 0:01:09]} 24. Nc5 {[%clk 0:01:26]}  Bxc2 {[%clk 0:01:05]} 25. Qxc2 {[%clk 0:01:26]}  Qc8 {[%clk 0:01:02]} 26. Bxd6 {[%clk 0:01:26]}  exd6 {[%clk 0:01:03]} 27. Rxe8+ {[%clk 0:01:24]}  Qxe8 {[%clk 0:01:04]} 28. Nb3 {[%clk 0:00:58]}  Re7 {[%clk 0:00:27]} 29. Ra1 {[%clk 0:00:53]}  Re2 {[%clk 0:00:27]} 30. Qc1 {[%clk 0:00:48]}  Qe4 {[%clk 0:00:25]} 31. Nd2 {[%clk 0:00:43]}  Qd3 {[%clk 0:00:22]} 32. Nf3 {[%clk 0:00:41]}  Rc2 {[%clk 0:00:16]} 33. Qf1 {[%clk 0:00:37]}  Qe4 {[%clk 0:00:11]} 34. Qb5 {[%clk 0:00:28]}  Bh6 {[%clk 0:00:10]} 35. Qb8+ {[%clk 0:00:22]}  Kg7 {[%clk 0:00:10]} 36. Qxd6 {[%clk 0:00:22]}  Rxb2 {[%clk 0:00:10]} 37. Qe5+ {[%clk 0:00:20]}  Qxe5 {[%clk 0:00:10]} 38. Nxe5 {[%clk 0:00:20]}  Bd2 {[%clk 0:00:11]} 39. Rxa7 {[%clk 0:00:15]}  Bxc3 {[%clk 0:00:11]} 40. Rxf7+ {[%clk 0:00:15]}  Kg8 {[%clk 0:00:12]} 41. Rf4 {[%clk 0:00:11]}  Rb4 {[%clk 0:00:08]} 42. Nc6 {[%clk 0:00:09]}  Rc4 {[%clk 0:00:09]} 43. Ne7+ {[%clk 0:00:10]}  Kg7 {[%clk 0:00:09]} 44. Nxd5 {[%clk 0:00:10]}  Rxd4 {[%clk 0:00:09]} 45. Rxd4 {[%clk 0:00:10]}  Bxd4 {[%clk 0:00:10]} 46. Nf4 {[%clk 0:00:10]}  Be5 {[%clk 0:00:09]} 47. Ne2 {[%clk 0:00:10]}  g5 {[%clk 0:00:08]} 48. g3 {[%clk 0:00:10]}  Kg6 {[%clk 0:00:08]} 49. Kg2 {[%clk 0:00:10]}  h5 {[%clk 0:00:09]} 50. Kf3 {[%clk 0:00:11]}  Bc7 {[%clk 0:00:09]} 51. Ke4 {[%clk 0:00:11]}  Bb6 {[%clk 0:00:09]} 52. f3 {[%clk 0:00:11]}  Bc7 {[%clk 0:00:09]} 53. g4 {[%clk 0:00:11]}  hxg4 {[%clk 0:00:09]} 54. hxg4 {[%clk 0:00:11]}  Kf6 {[%clk 0:00:09]} 55. Kd5 {[%clk 0:00:11]}  Be5 {[%clk 0:00:08]} 56. Nd4 {[%clk 0:00:10]}  Bc7 {[%clk 0:00:05]} 57. Nb5 {[%clk 0:00:11]}  Bb6 {[%clk 0:00:05]} 58. Nd6 {[%clk 0:00:11]}  Be3 {[%clk 0:00:05]} 59. Ne4+ {[%clk 0:00:11]}  Kg6 {[%clk 0:00:05]} 60. Ke6 {[%clk 0:00:11]}  Bf4 {[%clk 0:00:06]} 61. Nc3 {[%clk 0:00:11]}  Bd2 {[%clk 0:00:06]} 62. Nd5 {[%clk 0:00:12]}  Bc1 {[%clk 0:00:06]} 63. Ne7+ {[%clk 0:00:11]}  Kh6 {[%clk 0:00:06]} 64. Kf5 {[%clk 0:00:09]}  Ba3 {[%clk 0:00:06]} 65. Kf6 {[%clk 0:00:07]}  Bb2+ {[%clk 0:00:04]} 66. Kf7 {[%clk 0:00:08]}  Bc1 {[%clk 0:00:03]} 67. Nf5+ {[%clk 0:00:08]}  Kh7 {[%clk 0:00:04]} 68. Kf6 {[%clk 0:00:08]}  Bd2 {[%clk 0:00:04]} 69. Nd6 {[%clk 0:00:07]}  Kh6 {[%clk 0:00:01]} 70. Nf7+ {[%clk 0:00:07]}  Kh7 {[%clk 0:00:02]} 71. Nxg5+ {[%clk 0:00:08]}  Kg8 {[%clk 0:00:03]} 72. Ne4 {[%clk 0:00:07]}  Bb4 {[%clk 0:00:03]} 73. Kg6 {[%clk 0:00:08]}  Ba3 {[%clk 0:00:02]} 74. f4 {[%clk 0:00:08]}  Bb2 {[%clk 0:00:02]} 75. f5 {[%clk 0:00:08]}  Ba1 {[%clk 0:00:02]} 76. f6 {[%clk 0:00:08]}  Kf8 {[%clk 0:00:03]} 77. Ng5 {[%clk 0:00:09]}  Bd4 {[%clk 0:00:01]} 78. Ne6+ {[%clk 0:00:09]} 1-0


[Site "https://www.chess.com"]

[Event "Titled Tuesday Blitz November 14 Early 2023"]
[White "Joie, Sebastien"]
[Black "Al-Tarboush, Ward"]
[WhiteFideId "650420"]
[BlackFideId "7601450"]
[WhiteElo "2440"]
[BlackElo "2627"]
[Result "0-1"]
[Round "3"]
[TimeControl "180+1"]
[Date "2023.11.14"]
[WhiteClock "0:00:00"]
[BlackClock "0:00:41"]
[Board "126"]

1. d4 {[%clk 0:03:00]}  d5 {[%clk 0:03:00]} 2. c4 {[%clk 0:03:00]}  c6 {[%clk 0:03:00]} 3. Nc3 {[%clk 0:03:00]}  Nf6 {[%clk 0:03:00]} 4. e3 {[%clk 0:03:00]}  e6 {[%clk 0:03:00]} 5. Nf3 {[%clk 0:03:01]}  Nbd7 {[%clk 0:03:00]} 6. Bd3 {[%clk 0:03:01]}  dxc4 {[%clk 0:03:01]} 7. Bxc4 {[%clk 0:03:02]}  b5 {[%clk 0:03:00]} 8. Bd3 {[%clk 0:03:02]}  Bd6 {[%clk 0:03:00]} 9. O-O {[%clk 0:03:02]}  O-O {[%clk 0:03:00]} 10. Qc2 {[%clk 0:03:00]}  Bb7 {[%clk 0:03:00]} 11. e4 {[%clk 0:02:56]}  e5 {[%clk 0:03:00]} 12. dxe5 {[%clk 0:02:56]}  Nxe5 {[%clk 0:03:00]} 13. Nxe5 {[%clk 0:02:57]}  Bxe5 {[%clk 0:03:01]} 14. h3 {[%clk 0:02:57]}  Re8 {[%clk 0:02:59]} 15. Be3 {[%clk 0:02:56]}  Qc7 {[%clk 0:02:43]} 16. f4 {[%clk 0:01:29]}  Bxc3 {[%clk 0:02:42]} 17. bxc3 {[%clk 0:01:17]}  c5 {[%clk 0:02:40]} 18. e5 {[%clk 0:01:17]}  c4 {[%clk 0:02:36]} 19. Be2 {[%clk 0:01:11]}  Nd5 {[%clk 0:02:27]} 20. Bd4 {[%clk 0:01:10]}  Rad8 {[%clk 0:02:26]} 21. Rad1 {[%clk 0:01:03]}  b4 {[%clk 0:02:17]} 22. cxb4 {[%clk 0:00:57]}  c3 {[%clk 0:02:10]} 23. a3 {[%clk 0:00:39]}  a5 {[%clk 0:02:10]} 24. b5 {[%clk 0:00:28]}  Rc8 {[%clk 0:02:03]} 25. Kh1 {[%clk 0:00:18]}  Qe7 {[%clk 0:02:03]} 26. Bf3 {[%clk 0:00:05]}  Qxa3 {[%clk 0:01:58]} 27. e6 {[%clk 0:00:03]}  Rxe6 {[%clk 0:01:56]} 28. f5 {[%clk 0:00:03]}  Rh6 {[%clk 0:01:50]} 29. f6 {[%clk 0:00:03]}  Nb4 {[%clk 0:01:36]} 30. Qf5 {[%clk 0:00:02]}  g6 {[%clk 0:01:11]} 31. Qg5 {[%clk 0:00:02]}  Rh5 {[%clk 0:01:04]} 32. Bxh5 {[%clk 0:00:02]}  c2 {[%clk 0:01:04]} 33. Rc1 {[%clk 0:00:03]}  Qxh3+ {[%clk 0:01:03]} 34. Kg1 {[%clk 0:00:03]}  Qxh5 {[%clk 0:01:02]} 35. Qg3 {[%clk 0:00:02]}  Na2 {[%clk 0:00:46]} 36. Ra1 {[%clk 0:00:01]}  c1=Q {[%clk 0:00:40]} 37. Raxc1 {[%clk 0:00:01]}  Nxc1 {[%clk 0:00:41]} 38. Bc3 {[%clk 0:00:00]}  Ne2+ {[%clk 0:00:41]} 0-1


[Site "https://www.chess.com"]

[Event "Titled Tuesday Blitz November 14 Early 2023"]
[White "Gontcharov, Vladislav"]
[Black "Arnold, Ken"]
[WhiteFideId "4123492"]
[BlackFideId "2056836"]
[WhiteElo "2615"]
[BlackElo "2433"]
[Result "1-0"]
[Round "3"]
[TimeControl "180+1"]
[Date "2023.11.14"]
[WhiteClock "0:00:33"]
[BlackClock "0:00:04"]
[Board "132"]

1. d4 {[%clk 0:03:00]}  Nf6 {[%clk 0:02:57]} 2. c4 {[%clk 0:02:59]}  e6 {[%clk 0:02:58]} 3. Nc3 {[%clk 0:02:59]}  d5 {[%clk 0:02:56]} 4. cxd5 {[%clk 0:02:57]}  Nxd5 {[%clk 0:02:55]} 5. e4 {[%clk 0:02:55]}  Nxc3 {[%clk 0:02:55]} 6. bxc3 {[%clk 0:02:54]}  Be7 {[%clk 0:02:54]} 7. Nf3 {[%clk 0:02:53]}  c5 {[%clk 0:02:53]} 8. Bb5+ {[%clk 0:02:51]}  Bd7 {[%clk 0:02:53]} 9. Bxd7+ {[%clk 0:02:49]}  Nxd7 {[%clk 0:02:50]} 10. O-O {[%clk 0:02:47]}  cxd4 {[%clk 0:02:50]} 11. cxd4 {[%clk 0:02:47]}  O-O {[%clk 0:02:50]} 12. Rb1 {[%clk 0:02:45]}  b6 {[%clk 0:02:49]} 13. a4 {[%clk 0:02:39]}  Nf6 {[%clk 0:02:49]} 14. Qe2 {[%clk 0:02:39]}  Qd7 {[%clk 0:02:43]} 15. Rb5 {[%clk 0:02:26]}  a6 {[%clk 0:02:38]} 16. Rxb6 {[%clk 0:02:24]}  Qxa4 {[%clk 0:02:38]} 17. Bg5 {[%clk 0:02:21]}  h6 {[%clk 0:02:32]} 18. Bf4 {[%clk 0:02:01]}  Rfc8 {[%clk 0:02:07]} 19. h3 {[%clk 0:01:56]}  Rc2 {[%clk 0:02:02]} 20. Qe3 {[%clk 0:01:54]}  Rac8 {[%clk 0:01:57]} 21. Be5 {[%clk 0:01:24]}  Nd7 {[%clk 0:01:44]} 22. Rb7 {[%clk 0:01:22]}  Nxe5 {[%clk 0:01:41]} 23. Nxe5 {[%clk 0:01:20]}  R2c7 {[%clk 0:01:39]} 24. Rfb1 {[%clk 0:01:15]}  Rxb7 {[%clk 0:01:27]} 25. Rxb7 {[%clk 0:01:14]}  Qd1+ {[%clk 0:01:27]} 26. Kh2 {[%clk 0:01:12]}  Bd6 {[%clk 0:01:23]} 27. Qf4 {[%clk 0:00:48]}  f6 {[%clk 0:00:37]} 28. Qg3 {[%clk 0:00:48]}  g5 {[%clk 0:00:22]} 29. f4 {[%clk 0:00:45]}  Qxd4 {[%clk 0:00:17]} 30. Qg4 {[%clk 0:00:44]}  Re8 {[%clk 0:00:09]} 31. Qh5 {[%clk 0:00:42]}  Re7 {[%clk 0:00:05]} 32. Rxe7 {[%clk 0:00:39]}  Bxe7 {[%clk 0:00:04]} 33. Qg6+ {[%clk 0:00:33]} 1-0


[Site "https://www.chess.com"]

[Event "Titled Tuesday Blitz November 14 Early 2023"]
[White "Goldin, Roman"]
[Black "Statham_l3"]
[WhiteFideId "2803860"]
[WhiteElo "2399"]
[BlackElo "2604"]
[Result "1-0"]
[Round "3"]
[TimeControl "180+1"]
[Date "2023.11.14"]
[WhiteClock "0:00:04"]
[BlackClock "0:00:00"]
[Board "138"]

1. Nf3 {[%clk 0:02:58]}  d5 {[%clk 0:02:58]} 2. e3 {[%clk 0:02:56]}  Nf6 {[%clk 0:02:52]} 3. b4 {[%clk 0:02:54]}  Bf5 {[%clk 0:02:48]} 4. Bb2 {[%clk 0:02:54]}  e6 {[%clk 0:02:48]} 5. a3 {[%clk 0:02:54]}  Nbd7 {[%clk 0:02:47]} 6. c4 {[%clk 0:02:53]}  c5 {[%clk 0:02:44]} 7. b5 {[%clk 0:02:53]}  Bd6 {[%clk 0:02:39]} 8. d3 {[%clk 0:02:52]}  O-O {[%clk 0:02:26]} 9. Nbd2 {[%clk 0:02:52]}  Qc7 {[%clk 0:02:16]} 10. Be2 {[%clk 0:02:49]}  Rad8 {[%clk 0:01:53]} 11. O-O {[%clk 0:02:48]}  h6 {[%clk 0:01:48]} 12. g3 {[%clk 0:02:46]}  Bh3 {[%clk 0:01:43]} 13. Re1 {[%clk 0:02:46]}  Ng4 {[%clk 0:01:30]} 14. Qb3 {[%clk 0:02:40]}  f5 {[%clk 0:00:43]} 15. cxd5 {[%clk 0:02:34]}  e5 {[%clk 0:00:44]} 16. Nc4 {[%clk 0:02:27]}  e4 {[%clk 0:00:27]} 17. Nh4 {[%clk 0:02:18]}  Nxf2 {[%clk 0:00:08]} 18. Nxd6 {[%clk 0:02:01]}  Qxd6 {[%clk 0:00:05]} 19. Qc3 {[%clk 0:01:27]}  Rf6 {[%clk 0:00:03]} 20. Kxf2 {[%clk 0:01:25]}  g5 {[%clk 0:00:02]} 21. Ng2 {[%clk 0:01:24]}  f4 {[%clk 0:00:02]} 22. exf4 {[%clk 0:01:20]}  gxf4 {[%clk 0:00:03]} 23. gxf4 {[%clk 0:00:50]}  Rxf4+ {[%clk 0:00:04]} 24. Kg1 {[%clk 0:00:49]}  Qg6 {[%clk 0:00:04]} 25. Qh8+ {[%clk 0:00:38]}  Kf7 {[%clk 0:00:04]} 26. Qg7+ {[%clk 0:00:35]}  Qxg7 {[%clk 0:00:04]} 27. Bxg7 {[%clk 0:00:36]}  Bxg2 {[%clk 0:00:04]} 28. Bxh6 {[%clk 0:00:27]}  Rf6 {[%clk 0:00:02]} 29. Bg5 {[%clk 0:00:26]}  Rg8 {[%clk 0:00:01]} 30. h4 {[%clk 0:00:18]}  Bf3 {[%clk 0:00:01]} 31. Bxf3 {[%clk 0:00:14]}  Rxf3 {[%clk 0:00:02]} 32. Rxe4 {[%clk 0:00:15]}  Nf6 {[%clk 0:00:01]} 33. Re6 {[%clk 0:00:11]}  Nxd5 {[%clk 0:00:01]} 34. Rd6 {[%clk 0:00:10]}  Rxd3 {[%clk 0:00:01]} 35. Rf1+ {[%clk 0:00:09]}  Kg7 {[%clk 0:00:01]} 36. Rd7+ {[%clk 0:00:08]}  Kg6 {[%clk 0:00:01]} 37. Rxb7 {[%clk 0:00:02]}  Kh5 {[%clk 0:00:02]} 38. Rbf7 {[%clk 0:00:01]}  Rg3+ {[%clk 0:00:02]} 39. Kh2 {[%clk 0:00:01]}  Rd3 {[%clk 0:00:02]} 40. R7f3 {[%clk 0:00:01]}  Rxf3 {[%clk 0:00:01]} 41. Rxf3 {[%clk 0:00:01]}  c4 {[%clk 0:00:02]} 42. Rf5 {[%clk 0:00:01]}  Nc7 {[%clk 0:00:02]} 43. Rc5 {[%clk 0:00:01]}  Kg4 {[%clk 0:00:03]} 44. Rxc4+ {[%clk 0:00:01]}  Kf3 {[%clk 0:00:02]} 45. Rxc7 {[%clk 0:00:02]}  Re8 {[%clk 0:00:02]} 46. Rxa7 {[%clk 0:00:02]}  Re2+ {[%clk 0:00:02]} 47. Kh3 {[%clk 0:00:03]}  Re1 {[%clk 0:00:03]} 48. Rf7+ {[%clk 0:00:03]}  Ke4 {[%clk 0:00:03]} 49. Kg4 {[%clk 0:00:04]}  Rh1 {[%clk 0:00:03]} 50. Kh5 {[%clk 0:00:04]}  Ke5 {[%clk 0:00:03]} 51. b6 {[%clk 0:00:05]}  Ke6 {[%clk 0:00:04]} 52. b7 {[%clk 0:00:05]}  Rb1 {[%clk 0:00:03]} 53. Re7+ {[%clk 0:00:05]}  Kf5 {[%clk 0:00:03]} 54. Kh6 {[%clk 0:00:04]}  Rb6+ {[%clk 0:00:03]} 55. Kh5 {[%clk 0:00:03]}  Rb4 {[%clk 0:00:01]} 56. Rf7+ {[%clk 0:00:04]}  Ke6 {[%clk 0:00:01]} 57. Rg7 {[%clk 0:00:04]}  Rb6 {[%clk 0:00:01]} 58. a4 {[%clk 0:00:05]}  Ra6 {[%clk 0:00:00]} 59. b8=Q {[%clk 0:00:04]} 1-0


[Site "https://www.chess.com"]

[Event "Titled Tuesday Blitz November 14 Early 2023"]
[White "Lymar, Vladislav"]
[Black "Kornyukov, Alexey"]
[WhiteFideId "14162180"]
[BlackFideId "4150457"]
[WhiteElo "2577"]
[BlackElo "2348"]
[Result "1-0"]
[Round "3"]
[TimeControl "180+1"]
[Date "2023.11.14"]
[WhiteClock "0:00:56"]
[BlackClock "0:00:47"]
[Board "145"]

1. d4 {[%clk 0:03:00]}  Nf6 {[%clk 0:02:58]} 2. c4 {[%clk 0:03:00]}  e6 {[%clk 0:02:58]} 3. Bf4 {[%clk 0:03:00]}  b6 {[%clk 0:02:57]} 4. a3 {[%clk 0:02:59]}  Bb7 {[%clk 0:02:57]} 5. Nc3 {[%clk 0:02:59]}  d5 {[%clk 0:02:55]} 6. cxd5 {[%clk 0:03:00]}  exd5 {[%clk 0:02:53]} 7. e3 {[%clk 0:02:59]}  Bd6 {[%clk 0:02:48]} 8. Nh3 {[%clk 0:02:58]}  O-O {[%clk 0:02:46]} 9. Bd3 {[%clk 0:02:57]}  c5 {[%clk 0:02:37]} 10. b3 {[%clk 0:02:32]}  cxd4 {[%clk 0:02:27]} 11. Bxd6 {[%clk 0:02:33]}  Qxd6 {[%clk 0:02:23]} 12. Nb5 {[%clk 0:02:33]}  Qc5 {[%clk 0:02:12]} 13. Rc1 {[%clk 0:01:57]}  Qe7 {[%clk 0:01:56]} 14. Rc7 {[%clk 0:01:57]}  Qe6 {[%clk 0:01:45]} 15. Nxd4 {[%clk 0:01:31]}  Qd6 {[%clk 0:01:34]} 16. Rxb7 {[%clk 0:01:30]}  Nbd7 {[%clk 0:01:21]} 17. b4 {[%clk 0:01:24]}  Rfc8 {[%clk 0:01:04]} 18. O-O {[%clk 0:00:57]}  a6 {[%clk 0:00:51]} 19. Nf5 {[%clk 0:00:56]}  Qc6 {[%clk 0:00:47]} 20. Ne7+ {[%clk 0:00:56]} 1-0


[Site "https://www.chess.com"]

[Event "Titled Tuesday Blitz November 14 Early 2023"]
[White "KorolDimitriy75"]
[Black "Ambartsumova, Karina"]
[BlackFideId "4166299"]
[WhiteElo "2342"]
[BlackElo "2570"]
[Result "0-1"]
[Round "3"]
[TimeControl "180+1"]
[Date "2023.11.14"]
[WhiteClock "0:00:00"]
[BlackClock "0:00:51"]
[Board "149"]

1. d4 {[%clk 0:03:00]}  Nf6 {[%clk 0:02:59]} 2. c4 {[%clk 0:03:01]}  e6 {[%clk 0:03:00]} 3. Nc3 {[%clk 0:03:02]}  d5 {[%clk 0:03:00]} 4. Bg5 {[%clk 0:03:01]}  Be7 {[%clk 0:03:00]} 5. cxd5 {[%clk 0:03:02]}  exd5 {[%clk 0:03:01]} 6. e3 {[%clk 0:03:02]}  c6 {[%clk 0:03:01]} 7. Bd3 {[%clk 0:03:02]}  Nbd7 {[%clk 0:03:01]} 8. Qc2 {[%clk 0:03:03]}  h6 {[%clk 0:03:01]} 9. Bh4 {[%clk 0:03:03]}  Nh5 {[%clk 0:03:01]} 10. Bxe7 {[%clk 0:03:03]}  Qxe7 {[%clk 0:03:02]} 11. Nge2 {[%clk 0:03:03]}  Nb6 {[%clk 0:03:02]} 12. h3 {[%clk 0:03:02]}  Bd7 {[%clk 0:03:02]} 13. O-O {[%clk 0:02:57]}  O-O {[%clk 0:03:02]} 14. Rae1 {[%clk 0:02:51]}  Rfe8 {[%clk 0:02:52]} 15. b3 {[%clk 0:02:46]}  a5 {[%clk 0:02:49]} 16. Qd2 {[%clk 0:02:35]}  Nc8 {[%clk 0:02:46]} 17. Bb1 {[%clk 0:01:38]}  Nd6 {[%clk 0:02:44]} 18. Nc1 {[%clk 0:01:36]}  Ne4 {[%clk 0:02:21]} 19. Nxe4 {[%clk 0:01:28]}  dxe4 {[%clk 0:02:22]} 20. f4 {[%clk 0:01:16]}  Ng3 {[%clk 0:02:08]} 21. Rf2 {[%clk 0:01:14]}  a4 {[%clk 0:02:04]} 22. Ne2 {[%clk 0:01:01]}  Nxe2+ {[%clk 0:01:52]} 23. Qxe2 {[%clk 0:01:01]}  axb3 {[%clk 0:01:45]} 24. axb3 {[%clk 0:01:02]}  Qb4 {[%clk 0:01:45]} 25. Bc2 {[%clk 0:00:56]}  Ra2 {[%clk 0:01:40]} 26. f5 {[%clk 0:00:36]}  Rxc2 {[%clk 0:01:37]} 27. Qf1 {[%clk 0:00:22]}  Rxf2 {[%clk 0:01:33]} 28. Qxf2 {[%clk 0:00:23]}  f6 {[%clk 0:01:29]} 29. Rf1 {[%clk 0:00:16]}  Qxb3 {[%clk 0:01:28]} 30. Qg3 {[%clk 0:00:16]}  b5 {[%clk 0:01:24]} 31. Kh2 {[%clk 0:00:14]}  Qd5 {[%clk 0:01:19]} 32. Qc7 {[%clk 0:00:14]}  Bxf5 {[%clk 0:01:17]} 33. Rf4 {[%clk 0:00:13]}  b4 {[%clk 0:01:09]} 34. Qb7 {[%clk 0:00:11]}  b3 {[%clk 0:01:09]} 35. h4 {[%clk 0:00:07]}  Be6 {[%clk 0:00:59]} 36. Rf2 {[%clk 0:00:05]}  Qd6+ {[%clk 0:00:51]} 37. g3 {[%clk 0:00:00]}  Rb8 {[%clk 0:00:51]} 0-1


[Site "https://www.chess.com"]